[Event "*** Titled Tuesday Blitz"]
[Site "Chess.com"]
[Date "2020.11.03"]
[Round "8"]
[White "Azoulas1"]
[Black "ecwinslow"]
[Result "1-0"]
[WhiteElo "2050"]
[BlackElo "2161"]
[TimeControl "180+1"]
[EndTime "11:31:34 PST"]
[Termination "Azoulas1 won on time"]

1. e4 {[%clk 0:02:52.3]} 1... c5 {[%clk 0:02:59]} 2. Nf3 {[%clk 0:02:51.2]} 2...
d6 {[%clk 0:02:57.3]} 3. Bb5+ {[%clk 0:02:50.6]} 3... Bd7 {[%clk 0:02:56.6]} 4.
Bxd7+ {[%clk 0:02:50.2]} 4... Nxd7 {[%clk 0:02:57.3]} 5. O-O {[%clk 0:02:49.4]}
5... Ngf6 {[%clk 0:02:57.2]} 6. d3 {[%clk 0:02:47.7]} 6... e6 {[%clk 0:02:50.5]}
7. Ng5 {[%clk 0:02:46.8]} 7... h6 {[%clk 0:02:48.9]} 8. Nh3 {[%clk 0:02:46.2]}
8... Qc7 {[%clk 0:02:37.1]} 9. f4 {[%clk 0:02:44.8]} 9... Be7 {[%clk 0:02:32.2]}
10. Qe2 {[%clk 0:02:43.8]} 10... O-O-O {[%clk 0:02:25.3]} 11. Nc3 {[%clk
0:02:38.8]} 11... a6 {[%clk 0:02:15.7]} 12. Be3 {[%clk 0:02:34.7]} 12... Rdg8
{[%clk 0:02:03.5]} 13. Rfb1 {[%clk 0:02:32.4]} 13... g5 {[%clk 0:01:49]} 14.
fxg5 {[%clk 0:02:30.9]} 14... hxg5 {[%clk 0:01:48.6]} 15. Bxg5 {[%clk
0:02:29.3]} 15... Rxh3 {[%clk 0:01:40]} 16. gxh3 {[%clk 0:02:28.9]} 16... Rxg5+
{[%clk 0:01:39.6]} 17. Kh1 {[%clk 0:02:29.4]} 17... Ne5 {[%clk 0:01:37.7]} 18.
Nd1 {[%clk 0:02:23.4]} 18... Qc6 {[%clk 0:01:33.4]} 19. Nf2 {[%clk 0:02:20]}
19... d5 {[%clk 0:01:27.2]} 20. Rg1 {[%clk 0:02:16.8]} 20... Rxg1+ {[%clk
0:01:19.2]} 21. Rxg1 {[%clk 0:02:15.2]} 21... dxe4 {[%clk 0:01:19.1]} 22. dxe4
{[%clk 0:02:14.4]} 22... c4 {[%clk 0:01:15.5]} 23. c3 {[%clk 0:02:11.6]} 23...
Bc5 {[%clk 0:01:13.5]} 24. Rg5 {[%clk 0:02:06]} 24... Qd6 {[%clk 0:00:53.5]} 25.
Kg2 {[%clk 0:01:46.8]} 25... Bxf2 {[%clk 0:00:47.4]} 26. Kxf2 {[%clk 0:01:39.5]}
26... Nd3+ {[%clk 0:00:42.8]} 27. Kf1 {[%clk 0:01:33.7]} 27... Qf4+ {[%clk
0:00:33.7]} 28. Kg2 {[%clk 0:01:26.4]} 28... Qxg5+ {[%clk 0:00:29.1]} 29. Kh1
{[%clk 0:01:26.1]} 29... Qf4 {[%clk 0:00:27.8]} 30. e5 {[%clk 0:01:24.5]} 30...
Ne4 {[%clk 0:00:20.2]} 31. h4 {[%clk 0:01:19.6]} 31... Nef2+ {[%clk 0:00:11.5]}
32. Kg1 {[%clk 0:01:12.6]} 32... Qg4+ {[%clk 0:00:07.1]} 33. Qxg4 {[%clk
0:01:11.2]} 33... Nxg4 {[%clk 0:00:05.6]} 34. h5 {[%clk 0:01:11]} 34... Nh6
{[%clk 0:00:02.7]} 35. h3 {[%clk 0:01:10.2]} 35... Kd7 {[%clk 0:00:03.6]} 36.
Kg2 {[%clk 0:01:09.9]} 36... Ke7 {[%clk 0:00:02]} 37. Kf3 {[%clk 0:01:09.2]}
37... Kf8 {[%clk 0:00:02.1]} 38. Ke4 {[%clk 0:01:06.4]} 38... Kg7 {[%clk
0:00:02.6]} 39. Kd4 {[%clk 0:01:06]} 1-0

[Event "*** Titled Tuesday Blitz"]
[Site "Chess.com"]
[Date "2020.11.03"]
[Round "8"]
[White "S2PAc"]
[Black "MokshanovAlexey"]
[Result "1-0"]
[WhiteElo "2847"]
[BlackElo "2598"]
[TimeControl "180+1"]
[EndTime "11:31:36 PST"]
[Termination "S2PAc won by checkmate"]

1. d4 {[%clk 0:03:00.9]} 1... d5 {[%clk 0:02:59.7]} 2. Nf3 {[%clk 0:03:00.7]}
2... Nf6 {[%clk 0:02:59.5]} 3. g3 {[%clk 0:03:01.4]} 3... e6 {[%clk 0:02:57.3]}
4. Bg2 {[%clk 0:03:01.9]} 4... Be7 {[%clk 0:02:57.9]} 5. O-O {[%clk 0:03:02.7]}
5... O-O {[%clk 0:02:58.5]} 6. c4 {[%clk 0:03:03.4]} 6... b6 {[%clk 0:02:59]} 7.
Ne5 {[%clk 0:03:03]} 7... Bb7 {[%clk 0:02:59]} 8. Nc3 {[%clk 0:03:03.7]} 8...
Nbd7 {[%clk 0:02:45.4]} 9. Qa4 {[%clk 0:03:04.1]} 9... Nxe5 {[%clk 0:02:40.5]}
10. dxe5 {[%clk 0:03:03.8]} 10... Ne4 {[%clk 0:02:22.6]} 11. cxd5 {[%clk
0:03:03.3]} 11... Nxc3 {[%clk 0:02:18]} 12. bxc3 {[%clk 0:03:04.2]} 12... exd5
{[%clk 0:01:39.3]} 13. c4 {[%clk 0:03:04.3]} 13... c6 {[%clk 0:01:35.5]} 14.
cxd5 {[%clk 0:02:55.9]} 14... cxd5 {[%clk 0:01:35.4]} 15. Rd1 {[%clk 0:02:56.4]}
15... Bc5 {[%clk 0:01:13.4]} 16. Ba3 {[%clk 0:02:45.5]} 16... Re8 {[%clk
0:00:43.9]} 17. Bxc5 {[%clk 0:02:34.5]} 17... bxc5 {[%clk 0:00:43.8]} 18. Qb3
{[%clk 0:02:34.9]} 18... Qb6 {[%clk 0:00:38.5]} 19. Bxd5 {[%clk 0:02:31.1]}
19... Bxd5 {[%clk 0:00:30.2]} 20. Rxd5 {[%clk 0:02:28]} 20... h6 {[%clk
0:00:21.4]} 21. Rc1 {[%clk 0:02:20.3]} 21... Qxb3 {[%clk 0:00:17.1]} 22. axb3
{[%clk 0:02:20]} 22... Rab8 {[%clk 0:00:17.8]} 23. Rcxc5 {[%clk 0:02:16.5]}
23... Rxb3 {[%clk 0:00:17.4]} 24. Rc7 {[%clk 0:02:17.1]} 24... a6 {[%clk
0:00:15.5]} 25. Rdd7 {[%clk 0:02:13]} 25... Rxe5 {[%clk 0:00:11.9]} 26. Rxf7
{[%clk 0:02:12.8]} 26... Rg5 {[%clk 0:00:12.5]} 27. Ra7 {[%clk 0:02:12.6]} 27...
Ra3 {[%clk 0:00:12]} 28. h4 {[%clk 0:02:11.2]} 28... Rg6 {[%clk 0:00:12]} 29.
Rfb7 {[%clk 0:02:04.6]} 29... Ra5 {[%clk 0:00:11.9]} 30. Kg2 {[%clk 0:02:03.7]}
30... h5 {[%clk 0:00:12]} 31. e3 {[%clk 0:01:58.2]} 31... Kh7 {[%clk 0:00:11.4]}
32. Rc7 {[%clk 0:01:56.3]} 32... Ra2 {[%clk 0:00:10.9]} 33. Re7 {[%clk
0:01:55.2]} 33... Kh6 {[%clk 0:00:10.8]} 34. Rf7 {[%clk 0:01:50.4]} 34... Ra5
{[%clk 0:00:09.7]} 35. e4 {[%clk 0:01:47.6]} 35... Ra2 {[%clk 0:00:09.5]} 36. e5
{[%clk 0:01:45.4]} 36... Re6 {[%clk 0:00:09.3]} 37. Rxg7 {[%clk 0:01:41.9]}
37... Rxe5 {[%clk 0:00:08]} 38. Rge7 {[%clk 0:01:03.3]} 38... Rf5 {[%clk
0:00:06.9]} 39. Re6+ {[%clk 0:01:02.1]} 39... Rf6 {[%clk 0:00:07.5]} 40. Rxf6#
{[%clk 0:01:02.2]} 1-0

[Event "*** Titled Tuesday Blitz"]
[Site "Chess.com"]
[Date "2020.11.03"]
[Round "8"]
[White "Alomaterapia"]
[Black "Smile2005"]
[Result "0-1"]
[WhiteElo "2504"]
[BlackElo "2327"]
[TimeControl "180+1"]
[EndTime "11:31:39 PST"]
[Termination "Smile2005 won on time"]

1. e4 {[%clk 0:03:00.9]} 1... d5 {[%clk 0:02:58.6]} 2. exd5 {[%clk 0:02:59.4]}
2... Nf6 {[%clk 0:02:54.7]} 3. d4 {[%clk 0:02:57.6]} 3... Nxd5 {[%clk
0:02:53.8]} 4. Nf3 {[%clk 0:02:56.5]} 4... Bg4 {[%clk 0:02:53.9]} 5. Be2 {[%clk
0:02:55.7]} 5... e6 {[%clk 0:02:54]} 6. O-O {[%clk 0:02:55]} 6... Be7 {[%clk
0:02:54]} 7. h3 {[%clk 0:02:52.7]} 7... Bh5 {[%clk 0:02:54.2]} 8. c4 {[%clk
0:02:49.1]} 8... Nb6 {[%clk 0:02:54.2]} 9. Nc3 {[%clk 0:02:44.7]} 9... O-O
{[%clk 0:02:53.9]} 10. Bf4 {[%clk 0:02:30.2]} 10... Nc6 {[%clk 0:02:48.3]} 11.
g4 {[%clk 0:01:57.3]} 11... Bg6 {[%clk 0:02:48.1]} 12. Re1 {[%clk 0:01:46.1]}
12... Qd7 {[%clk 0:02:37.8]} 13. d5 {[%clk 0:01:31.2]} 13... exd5 {[%clk
0:02:36.6]} 14. cxd5 {[%clk 0:01:31.2]} 14... Nb4 {[%clk 0:02:36.5]} 15. Ne5
{[%clk 0:01:30.8]} 15... Qd8 {[%clk 0:02:33.2]} 16. Bf3 {[%clk 0:01:17.6]} 16...
Bd6 {[%clk 0:02:32.2]} 17. Nxg6 {[%clk 0:01:07.9]} 17... hxg6 {[%clk 0:02:31.4]}
18. Be3 {[%clk 0:01:04.1]} 18... Nc4 {[%clk 0:02:26.2]} 19. a3 {[%clk
0:00:52.2]} 19... Nxe3 {[%clk 0:02:24.8]} 20. Rxe3 {[%clk 0:00:51.9]} 20... Na6
{[%clk 0:02:23.7]} 21. b4 {[%clk 0:00:52.1]} 21... Nb8 {[%clk 0:02:16.2]} 22.
Qe2 {[%clk 0:00:39.9]} 22... Nd7 {[%clk 0:02:15.7]} 23. Re1 {[%clk 0:00:35.8]}
23... a5 {[%clk 0:02:06.7]} 24. Qb5 {[%clk 0:00:29.7]} 24... axb4 {[%clk
0:02:05.3]} 25. axb4 {[%clk 0:00:30.3]} 25... Ra3 {[%clk 0:01:57.1]} 26. Kg2
{[%clk 0:00:27.4]} 26... Rb3 {[%clk 0:01:49]} 27. Na2 {[%clk 0:00:16.1]} 27...
Rb2 {[%clk 0:01:46.4]} 28. R1e2 {[%clk 0:00:16.4]} 28... Rxe2 {[%clk 0:01:33.8]}
29. Rxe2 {[%clk 0:00:14.7]} 29... Ne5 {[%clk 0:01:34.2]} 30. Be4 {[%clk
0:00:11.6]} 30... Qf6 {[%clk 0:01:34]} 31. Nc1 {[%clk 0:00:07.9]} 31... Qf4
{[%clk 0:01:33.1]} 32. Qxb7 {[%clk 0:00:06.3]} 32... f5 {[%clk 0:01:07.6]} 33.
Bc2 {[%clk 0:00:03.1]} 33... Qf3+ {[%clk 0:01:04]} 34. Kg1 {[%clk 0:00:02.3]}
34... fxg4 {[%clk 0:01:03.8]} 0-1

[Event "*** Titled Tuesday Blitz"]
[Site "Chess.com"]
[Date "2020.11.03"]
[Round "8"]
[White "Eloist"]
[Black "Bodnar_Mykola"]
[Result "1/2-1/2"]
[WhiteElo "2285"]
[BlackElo "2404"]
[TimeControl "180+1"]
[EndTime "11:31:39 PST"]
[Termination "Game drawn by repetition"]

1. e4 {[%clk 0:03:00.9]} 1... e5 {[%clk 0:03:00.3]} 2. Bc4 {[%clk 0:03:00.2]}
2... Nf6 {[%clk 0:02:59.4]} 3. d3 {[%clk 0:03:00.2]} 3... Nc6 {[%clk 0:02:59.7]}
4. Nf3 {[%clk 0:03:00.3]} 4... Bc5 {[%clk 0:02:59.5]} 5. c3 {[%clk 0:02:59.8]}
5... d6 {[%clk 0:02:59.2]} 6. Nbd2 {[%clk 0:02:59.8]} 6... a5 {[%clk 0:02:58.4]}
7. O-O {[%clk 0:02:58.4]} 7... O-O {[%clk 0:02:58]} 8. h3 {[%clk 0:02:43.6]}
8... h6 {[%clk 0:02:55.1]} 9. Re1 {[%clk 0:02:42.5]} 9... a4 {[%clk 0:02:51.6]}
10. Nf1 {[%clk 0:02:26.2]} 10... Be6 {[%clk 0:02:50.5]} 11. Bb5 {[%clk
0:02:16.7]} 11... Bd7 {[%clk 0:02:32.1]} 12. Bxa4 {[%clk 0:02:01.5]} 12... Bb6
{[%clk 0:01:57.5]} 13. Bb3 {[%clk 0:01:57.4]} 13... Nh5 {[%clk 0:01:53.3]} 14.
Be3 {[%clk 0:01:47.1]} 14... Bxe3 {[%clk 0:01:46.8]} 15. fxe3 {[%clk 0:01:41.2]}
15... Kh8 {[%clk 0:01:46.6]} 16. g4 {[%clk 0:01:33.7]} 16... Nf6 {[%clk
0:01:46.1]} 17. Ng3 {[%clk 0:01:33.5]} 17... Be6 {[%clk 0:01:41.3]} 18. Bxe6
{[%clk 0:01:28.3]} 18... fxe6 {[%clk 0:01:41.4]} 19. Kg2 {[%clk 0:01:28.4]}
19... Nh7 {[%clk 0:01:41.2]} 20. Rf1 {[%clk 0:01:26.7]} 20... Qe7 {[%clk
0:01:35.4]} 21. a4 {[%clk 0:01:18.3]} 21... b6 {[%clk 0:01:34.2]} 22. b4 {[%clk
0:01:17.3]} 22... d5 {[%clk 0:01:27.9]} 23. b5 {[%clk 0:01:14.5]} 23... Na5
{[%clk 0:01:28.1]} 24. Nxe5 {[%clk 0:01:13.8]} 24... Qg5 {[%clk 0:01:27.9]} 25.
d4 {[%clk 0:00:57.8]} 25... Kg8 {[%clk 0:01:16.9]} 26. Qe2 {[%clk 0:00:54.4]}
26... Nf6 {[%clk 0:01:13.9]} 27. h4 {[%clk 0:00:45.8]} 27... Qxh4 {[%clk
0:01:13.9]} 28. Ng6 {[%clk 0:00:45.1]} 28... Qg5 {[%clk 0:01:01.1]} 29. Nxf8
{[%clk 0:00:44.8]} 29... Rxf8 {[%clk 0:01:02]} 30. Rf4 {[%clk 0:00:40.2]} 30...
dxe4 {[%clk 0:00:59]} 31. Raf1 {[%clk 0:00:35.5]} 31... Nb7 {[%clk 0:00:45.7]}
32. Nxe4 {[%clk 0:00:33.2]} 32... Qg6 {[%clk 0:00:46.1]} 33. Nxf6+ {[%clk
0:00:30.1]} 33... gxf6 {[%clk 0:00:47]} 34. Qf3 {[%clk 0:00:26.5]} 34... Nd6
{[%clk 0:00:47.3]} 35. Rxf6 {[%clk 0:00:25.6]} 35... Rxf6 {[%clk 0:00:48.2]} 36.
Qxf6 {[%clk 0:00:25.3]} 36... Qxg4+ {[%clk 0:00:49.1]} 37. Kh2 {[%clk
0:00:24.3]} 37... Qh5+ {[%clk 0:00:49.2]} 38. Kg2 {[%clk 0:00:21.6]} 38... Qg4+
{[%clk 0:00:49.5]} 39. Kh2 {[%clk 0:00:20.1]} 39... Qh5+ {[%clk 0:00:49.9]} 40.
Kg2 {[%clk 0:00:18.6]} 40... Qg4+ {[%clk 0:00:50.3]} 1/2-1/2

[Event "*** Titled Tuesday Blitz"]
[Site "Chess.com"]
[Date "2020.11.03"]
[Round "8"]
[White "KetiGrant"]
[Black "geordie_derraugh"]
[Result "0-1"]
[WhiteElo "2305"]
[BlackElo "2429"]
[TimeControl "180+1"]
[EndTime "11:31:44 PST"]
[Termination "geordie_derraugh won on time"]

1. e4 {[%clk 0:03:00.9]} 1... c5 {[%clk 0:02:58.8]} 2. Nf3 {[%clk 0:03:00.3]}
2... e6 {[%clk 0:02:59.1]} 3. d4 {[%clk 0:02:59.8]} 3... cxd4 {[%clk 0:02:59.2]}
4. Nxd4 {[%clk 0:03:00.7]} 4... Nc6 {[%clk 0:02:59.3]} 5. Nc3 {[%clk 0:02:59.3]}
5... Qc7 {[%clk 0:02:58.8]} 6. Be3 {[%clk 0:02:58.4]} 6... a6 {[%clk 0:02:57.6]}
7. Qd2 {[%clk 0:02:54.9]} 7... Nf6 {[%clk 0:02:57.4]} 8. O-O-O {[%clk 0:02:50]}
8... Be7 {[%clk 0:02:56.1]} 9. f4 {[%clk 0:02:39.4]} 9... d6 {[%clk 0:02:54.5]}
10. Be2 {[%clk 0:02:13.4]} 10... Bd7 {[%clk 0:02:50.6]} 11. g4 {[%clk
0:02:12.6]} 11... b5 {[%clk 0:02:41.3]} 12. g5 {[%clk 0:02:11.9]} 12... b4
{[%clk 0:02:34.2]} 13. gxf6 {[%clk 0:02:09.6]} 13... bxc3 {[%clk 0:02:34]} 14.
Qxc3 {[%clk 0:02:10]} 14... Bxf6 {[%clk 0:02:23.5]} 15. Bf3 {[%clk 0:02:07.7]}
15... Rc8 {[%clk 0:02:15]} 16. Rd2 {[%clk 0:00:33]} 16... O-O {[%clk 0:01:56.7]}
17. Rg1 {[%clk 0:00:32.6]} 17... Kh8 {[%clk 0:01:49.1]} 18. e5 {[%clk
0:00:11.2]} 18... dxe5 {[%clk 0:01:32.7]} 19. Nxc6 {[%clk 0:00:09.2]} 19... Bxc6
{[%clk 0:01:24.6]} 20. fxe5 {[%clk 0:00:07.5]} 20... Bxf3 {[%clk 0:00:52.2]} 21.
Qxc7 {[%clk 0:00:06.4]} 21... Rxc7 {[%clk 0:00:49.7]} 22. exf6 {[%clk
0:00:06.4]} 22... Rfc8 {[%clk 0:00:30]} 23. Rxg7 {[%clk 0:00:02]} 23... Be4
{[%clk 0:00:25.8]} 24. c3 {[%clk 0:00:02.2]} 24... Bg6 {[%clk 0:00:26]} 25. Bd4
{[%clk 0:00:01.1]} 25... Re8 {[%clk 0:00:22.8]} 0-1

[Event "*** Titled Tuesday Blitz"]
[Site "Chess.com"]
[Date "2020.11.03"]
[Round "8"]
[White "TimofeevAr"]
[Black "Vanina1989"]
[Result "1/2-1/2"]
[WhiteElo "2799"]
[BlackElo "2626"]
[TimeControl "180+1"]
[EndTime "11:31:47 PST"]
[Termination "Game drawn by repetition"]

1. c4 {[%clk 0:03:00.9]} 1... c6 {[%clk 0:02:59.9]} 2. Nf3 {[%clk 0:02:59.8]}
2... d5 {[%clk 0:03:00]} 3. e3 {[%clk 0:03:00]} 3... Nf6 {[%clk 0:02:59.1]} 4.
Nc3 {[%clk 0:02:59.9]} 4... Bg4 {[%clk 0:02:55.3]} 5. cxd5 {[%clk 0:02:56]} 5...
Bxf3 {[%clk 0:02:51.3]} 6. Qxf3 {[%clk 0:02:55.7]} 6... cxd5 {[%clk 0:02:51.4]}
7. d4 {[%clk 0:02:55.7]} 7... e6 {[%clk 0:02:50.2]} 8. Bd2 {[%clk 0:02:55.7]}
8... Nc6 {[%clk 0:02:48]} 9. Bd3 {[%clk 0:02:55.1]} 9... Bd6 {[%clk 0:02:47.3]}
10. Qe2 {[%clk 0:02:53.9]} 10... a6 {[%clk 0:02:46.1]} 11. O-O {[%clk
0:02:53.5]} 11... O-O {[%clk 0:02:45.9]} 12. f4 {[%clk 0:02:53.3]} 12... Ne7
{[%clk 0:02:43.6]} 13. g4 {[%clk 0:02:50.4]} 13... Bb4 {[%clk 0:02:41.2]} 14. g5
{[%clk 0:02:47.1]} 14... Nd7 {[%clk 0:02:38.1]} 15. a3 {[%clk 0:02:42.5]} 15...
Bxc3 {[%clk 0:02:35.7]} 16. Bxc3 {[%clk 0:02:42.9]} 16... Nf5 {[%clk 0:02:36.1]}
17. Rac1 {[%clk 0:02:39.4]} 17... f6 {[%clk 0:02:29.5]} 18. Bxf5 {[%clk
0:02:20]} 18... exf5 {[%clk 0:02:29.4]} 19. Qf3 {[%clk 0:02:20.3]} 19... fxg5
{[%clk 0:02:27.9]} 20. Qxd5+ {[%clk 0:02:20.1]} 20... Kh8 {[%clk 0:02:25.9]} 21.
Qxb7 {[%clk 0:02:12.8]} 21... Nf6 {[%clk 0:02:21.1]} 22. d5 {[%clk 0:02:12.9]}
22... Rb8 {[%clk 0:02:09]} 23. Qxa6 {[%clk 0:01:56.2]} 23... Nxd5 {[%clk
0:01:57.9]} 24. Be5 {[%clk 0:01:55.6]} 24... Rb6 {[%clk 0:01:25.5]} 25. Qe2
{[%clk 0:01:24.7]} 25... Rg6 {[%clk 0:01:22.9]} 26. Kh1 {[%clk 0:01:19.1]} 26...
gxf4 {[%clk 0:01:09.5]} 27. exf4 {[%clk 0:01:17.2]} 27... Nf6 {[%clk 0:00:43.6]}
28. Bxf6 {[%clk 0:01:16.7]} 28... Qxf6 {[%clk 0:00:42.9]} 29. b4 {[%clk
0:01:09.2]} 29... h6 {[%clk 0:00:34.9]} 30. Qf3 {[%clk 0:01:07.9]} 30... Rd8
{[%clk 0:00:30.4]} 31. Rcd1 {[%clk 0:01:04.7]} 31... Rc8 {[%clk 0:00:28.8]} 32.
b5 {[%clk 0:00:54]} 32... Rc2 {[%clk 0:00:24.1]} 33. Rf2 {[%clk 0:00:49.4]}
33... Rc3 {[%clk 0:00:19.1]} 34. Rd3 {[%clk 0:00:38]} 34... Rc1+ {[%clk
0:00:16.7]} 35. Rd1 {[%clk 0:00:37.3]} 35... Rc3 {[%clk 0:00:16]} 36. Rd3 {[%clk
0:00:37.5]} 36... Rc1+ {[%clk 0:00:15.6]} 37. Rd1 {[%clk 0:00:37.4]} 37... Rc3
{[%clk 0:00:15.8]} 1/2-1/2

[Event "*** Titled Tuesday Blitz"]
[Site "Chess.com"]
[Date "2020.11.03"]
[Round "8"]
[White "Zq1"]
[Black "Flawless_Fighter"]
[Result "1-0"]
[WhiteElo "2536"]
[BlackElo "2651"]
[TimeControl "180+1"]
[EndTime "11:31:50 PST"]
[Termination "Zq1 won by resignation"]

1. d4 {[%clk 0:03:00.9]} 1... Nf6 {[%clk 0:02:59.2]} 2. c4 {[%clk 0:03:00.8]}
2... e6 {[%clk 0:02:59.4]} 3. Nc3 {[%clk 0:03:00.3]} 3... Bb4 {[%clk 0:02:53]}
4. e3 {[%clk 0:03:00.1]} 4... O-O {[%clk 0:02:51.8]} 5. Bd3 {[%clk 0:03:00.2]}
5... d5 {[%clk 0:02:52]} 6. Ne2 {[%clk 0:02:56]} 6... dxc4 {[%clk 0:02:46.2]} 7.
Bxc4 {[%clk 0:02:56]} 7... c5 {[%clk 0:02:44.9]} 8. a3 {[%clk 0:02:55.3]} 8...
Bxc3+ {[%clk 0:02:43.2]} 9. bxc3 {[%clk 0:02:55.4]} 9... b6 {[%clk 0:02:42.5]}
10. O-O {[%clk 0:02:53.9]} 10... Bb7 {[%clk 0:02:38.3]} 11. f3 {[%clk
0:02:53.7]} 11... Nc6 {[%clk 0:02:37.1]} 12. e4 {[%clk 0:02:52]} 12... Rc8
{[%clk 0:02:36.5]} 13. Bb5 {[%clk 0:02:41.1]} 13... a6 {[%clk 0:02:32.8]} 14.
Ba4 {[%clk 0:02:28.4]} 14... b5 {[%clk 0:02:28.6]} 15. Bb3 {[%clk 0:02:25]}
15... Na5 {[%clk 0:02:23.3]} 16. Ba2 {[%clk 0:02:24.6]} 16... cxd4 {[%clk
0:02:17.7]} 17. cxd4 {[%clk 0:02:24.6]} 17... Nc4 {[%clk 0:02:14.6]} 18. a4
{[%clk 0:02:22.2]} 18... b4 {[%clk 0:02:10.2]} 19. Qd3 {[%clk 0:02:09]} 19...
Nb6 {[%clk 0:01:53.6]} 20. a5 {[%clk 0:02:00.7]} 20... Na4 {[%clk 0:01:49.1]}
21. Bc4 {[%clk 0:01:39.2]} 21... Qxa5 {[%clk 0:00:59.8]} 22. Bd2 {[%clk
0:01:33.2]} 22... Qc7 {[%clk 0:00:52.7]} 23. Bxa6 {[%clk 0:01:23.2]} 23... Nb2
{[%clk 0:00:43.4]} 24. Qb5 {[%clk 0:01:03.7]} 24... Bxa6 {[%clk 0:00:41.6]} 25.
Qxa6 {[%clk 0:01:03.3]} 25... Qc2 {[%clk 0:00:38.5]} 26. Bxb4 {[%clk 0:01:01]}
26... Nd3 {[%clk 0:00:19.7]} 27. Bxf8 {[%clk 0:00:39.1]} 27... Rxf8 {[%clk
0:00:20.6]} 28. Ra2 {[%clk 0:00:36.9]} 28... Nb2 {[%clk 0:00:09.8]} 29. Qb5
{[%clk 0:00:33.1]} 29... Rc8 {[%clk 0:00:04.9]} 30. Qxb2 {[%clk 0:00:32.6]}
30... Qc7 {[%clk 0:00:05.6]} 31. Rc1 {[%clk 0:00:31]} 31... Qd7 {[%clk
0:00:05.7]} 32. Rxc8+ {[%clk 0:00:30.6]} 32... Qxc8 {[%clk 0:00:06.6]} 33. Qa3
{[%clk 0:00:30.1]} 1-0

[Event "*** Titled Tuesday Blitz"]
[Site "Chess.com"]
[Date "2020.11.03"]
[Round "8"]
[White "Xeniya2005"]
[Black "MatyChess1"]
[Result "0-1"]
[WhiteElo "2398"]
[BlackElo "2582"]
[TimeControl "180+1"]
[EndTime "11:31:54 PST"]
[Termination "MatyChess1 won by resignation"]

1. e4 {[%clk 0:03:00.9]} 1... c5 {[%clk 0:02:59.5]} 2. Be2 {[%clk 0:03:00.8]}
2... Nc6 {[%clk 0:02:58.1]} 3. f4 {[%clk 0:03:00.7]} 3... d5 {[%clk 0:02:55.9]}
4. d3 {[%clk 0:03:00.2]} 4... g6 {[%clk 0:02:51.9]} 5. Nf3 {[%clk 0:02:59.5]}
5... Bg7 {[%clk 0:02:52.1]} 6. e5 {[%clk 0:02:58.2]} 6... Nh6 {[%clk 0:02:51]}
7. c3 {[%clk 0:02:56.3]} 7... O-O {[%clk 0:02:50.6]} 8. Be3 {[%clk 0:02:54.4]}
8... d4 {[%clk 0:02:43.5]} 9. Bf2 {[%clk 0:02:51.4]} 9... Ng4 {[%clk 0:02:41.6]}
10. O-O {[%clk 0:02:45.8]} 10... f6 {[%clk 0:02:41]} 11. Qb3+ {[%clk 0:02:38.1]}
11... Kh8 {[%clk 0:02:39.8]} 12. exf6 {[%clk 0:02:33]} 12... exf6 {[%clk
0:02:39.3]} 13. Nbd2 {[%clk 0:02:30.4]} 13... Re8 {[%clk 0:02:35]} 14. Rae1
{[%clk 0:02:28.6]} 14... b6 {[%clk 0:02:25.1]} 15. cxd4 {[%clk 0:02:13.1]} 15...
Nxf2 {[%clk 0:02:18.9]} 16. Rxf2 {[%clk 0:02:07.4]} 16... Nxd4 {[%clk
0:02:18.5]} 17. Nxd4 {[%clk 0:02:05.9]} 17... Qxd4 {[%clk 0:02:19.4]} 18. Qd1
{[%clk 0:02:00.2]} 18... Bf5 {[%clk 0:02:13.1]} 19. Nb3 {[%clk 0:01:49.5]} 19...
Qe3 {[%clk 0:02:03.3]} 20. Rf1 {[%clk 0:01:18.5]} 20... Rad8 {[%clk 0:01:59.7]}
21. Nc1 {[%clk 0:01:12.8]} 21... c4 {[%clk 0:01:53.9]} 22. d4 {[%clk 0:01:02.1]}
22... Rxd4 {[%clk 0:01:50.5]} 23. Qa4 {[%clk 0:01:00.6]} 23... c3 {[%clk
0:00:55.5]} 24. Qb5 {[%clk 0:00:40.3]} 24... cxb2 {[%clk 0:00:51.4]} 25. Qxb2
{[%clk 0:00:34.8]} 25... Rxf4 {[%clk 0:00:49.6]} 26. Bb5 {[%clk 0:00:23.9]}
26... Rc8 {[%clk 0:00:45.7]} 27. Nb3 {[%clk 0:00:16.4]} 27... Rc2 {[%clk
0:00:39.4]} 28. Qxc2 {[%clk 0:00:04.3]} 28... Bxc2 {[%clk 0:00:38.7]} 29. Nd2
{[%clk 0:00:02.7]} 29... Rxf2 {[%clk 0:00:30.4]} 30. Rxf2 {[%clk 0:00:02.9]}
30... Bf8 {[%clk 0:00:29.5]} 0-1

[Event "*** Titled Tuesday Blitz"]
[Site "Chess.com"]
[Date "2020.11.03"]
[Round "8"]
[White "RobPeresian"]
[Black "MashaFromRussia"]
[Result "0-1"]
[WhiteElo "2443"]
[BlackElo "2359"]
[TimeControl "180+1"]
[EndTime "11:31:54 PST"]
[Termination "MashaFromRussia won by resignation"]

1. Nf3 {[%clk 0:03:00.9]} 1... d6 {[%clk 0:02:59.3]} 2. c4 {[%clk 0:02:59.1]}
2... e5 {[%clk 0:02:58.6]} 3. Nc3 {[%clk 0:02:57.5]} 3... f5 {[%clk 0:02:59]} 4.
d4 {[%clk 0:02:57.6]} 4... e4 {[%clk 0:02:58.9]} 5. Ng5 {[%clk 0:02:58.2]} 5...
Be7 {[%clk 0:02:59.4]} 6. Nh3 {[%clk 0:02:57.6]} 6... Nf6 {[%clk 0:02:59.6]} 7.
g3 {[%clk 0:02:58]} 7... O-O {[%clk 0:03:00.1]} 8. Bg2 {[%clk 0:02:57.9]} 8...
c5 {[%clk 0:02:59.3]} 9. dxc5 {[%clk 0:02:49.8]} 9... dxc5 {[%clk 0:02:58.9]}
10. Qxd8 {[%clk 0:02:39.4]} 10... Rxd8 {[%clk 0:02:59.8]} 11. Nf4 {[%clk
0:02:39.7]} 11... Nc6 {[%clk 0:02:59.1]} 12. Nfd5 {[%clk 0:02:34.8]} 12... Kf7
{[%clk 0:02:37.8]} 13. Nxe7 {[%clk 0:02:30.3]} 13... Kxe7 {[%clk 0:02:30.8]} 14.
Bg5 {[%clk 0:02:29.9]} 14... Be6 {[%clk 0:02:30.2]} 15. Rc1 {[%clk 0:02:16.2]}
15... h6 {[%clk 0:02:27.9]} 16. Be3 {[%clk 0:02:04.8]} 16... Nd4 {[%clk
0:02:22.7]} 17. b3 {[%clk 0:01:55]} 17... Ng4 {[%clk 0:02:19.9]} 18. Bf4 {[%clk
0:01:51.4]} 18... g5 {[%clk 0:02:14.5]} 19. Bd2 {[%clk 0:01:51]} 19... Rd7
{[%clk 0:02:07.7]} 20. h4 {[%clk 0:01:41.6]} 20... Kf6 {[%clk 0:01:35.2]} 21.
hxg5+ {[%clk 0:01:39.6]} 21... hxg5 {[%clk 0:01:36.1]} 22. Na4 {[%clk
0:01:14.9]} 22... b6 {[%clk 0:01:29.3]} 23. Bc3 {[%clk 0:00:53.9]} 23... Kg6
{[%clk 0:01:15]} 24. Nb2 {[%clk 0:00:34.4]} 24... Rad8 {[%clk 0:01:07.6]} 25. e3
{[%clk 0:00:15.3]} 25... Nc6 {[%clk 0:01:07.3]} 26. Ke2 {[%clk 0:00:14.7]} 26...
Nce5 {[%clk 0:01:04.1]} 27. Rcd1 {[%clk 0:00:14.6]} 27... Nd3 {[%clk 0:01:03.3]}
28. Nxd3 {[%clk 0:00:14.5]} 28... Rxd3 {[%clk 0:00:58.6]} 29. Rxd3 {[%clk
0:00:14.1]} 29... Rxd3 {[%clk 0:00:59.5]} 30. Be1 {[%clk 0:00:12]} 30... b5
{[%clk 0:00:53.7]} 31. cxb5 {[%clk 0:00:08.2]} 31... c4 {[%clk 0:00:53.8]} 32.
f3 {[%clk 0:00:07.2]} 32... Nxe3 {[%clk 0:00:40.3]} 33. Rh2 {[%clk 0:00:02]}
33... Nxg2 {[%clk 0:00:39.2]} 34. Rxg2 {[%clk 0:00:02.9]} 34... exf3+ {[%clk
0:00:39.4]} 0-1